fUSD/lending_fUSD_20260625
["ID","MTS","AMOUNT","RATE_DAILY","PERIOD"]
[426438666,1782390207000,1000.0,0.00030959,60]
[426438671,1782390208000,1000.0,0.00030959,60]
[426438670,1782390208000,1000.0,0.00030959,60]
[426438669,1782390208000,1000.0,0.00030959,60]
[426438668,1782390208000,1000.0,0.00030959,60]
[426438667,1782390208000,1000.0,0.00030959,60]
[426438675,1782390209000,1000.0,0.00030959,60]
[426438674,1782390209000,1000.0,0.00030959,60]
[426438673,1782390209000,1000.0,0.00030959,60]
[426438672,1782390209000,1000.0,0.00030959,60]
[426438676,1782390210000,381.88,0.00029931,30]
[426438677,1782390210000,1000.0,0.00030959,60]
[426438680,1782390210000,1000.0,0.00030959,60]
[426438679,1782390210000,1000.0,0.00030959,60]
[426438678,1782390210000,1000.0,0.00030959,60]
[426438684,1782390211000,371.0,0.00030959,60]
[426438683,1782390211000,1000.0,0.00030959,60]
[426438682,1782390211000,1000.0,0.00030959,60]
[426438681,1782390211000,381.88,0.00030456,30]
[426438685,1782390212000,381.88,0.00030981,30]
[426438686,1782390219000,165.61,0.00031507,30]
[426438687,1782390220000,201.79434699,0.00031507,30]
[426438688,1782390221000,172.39,0.00030949,120]
[426438689,1782390223000,150.0,0.000315,30]
[426438690,1782390228000,508.92,0.00029997,30]
[426438691,1782390229000,508.92,0.00030096,30]
[426438692,1782390230000,508.92,0.00030196,30]
[426438694,1782390231000,508.92,0.00030395,30]
[426438693,1782390231000,508.92,0.00030296,30]
[426438695,1782390232000,508.92,0.00030495,30]
[426438696,1782390234000,1073.15,0.00029931,30]
[426438697,1782390234000,763.38,0.00025378,30]
[426438699,1782390235000,763.38,0.0002646,30]
[426438698,1782390235000,1073.15,0.00030456,30]
[426438700,1782390236000,1073.15,0.00030981,30]
[426438701,1782390236000,763.38,0.00027541,30]
[426438703,1782390237000,763.38,0.00028623,30]
[426438702,1782390237000,1073.16,0.00031506,30]
[426438704,1782390238000,763.38,0.00029704,30]
[426438706,1782390276000,432.426406,0.00025284,120]
[426438705,1782390276000,3086.5,0.00029931,30]
[426438707,1782390277000,3086.5,0.00030456,30]
[426438708,1782390282000,675.5657209,0.00031507,30]
[426438709,1782390288000,2606.61,0.00029931,30]
[426438710,1782390288000,2606.61,0.00030456,30]
[426438712,1782390289000,214.29155801,0.00030793,30]
[426438711,1782390289000,214.29155801,0.00029971,30]
[426438713,1782390303000,216.213203,0.0002548,120]
[426438714,1782390307000,261.25,0.00029997,30]
[426438715,1782390308000,261.25,0.00030096,30]
[426438716,1782390309000,261.25,0.00030196,30]
[426438717,1782390310000,261.25,0.00030296,30]
[426438718,1782390311000,261.25,0.00030395,30]
[426438719,1782390312000,261.25,0.00030495,30]
[426438721,1782390313000,391.87,0.00025378,30]
[426438720,1782390313000,2212.89,0.00029931,30]
[426438722,1782390314000,2212.89,0.00030456,30]
[426438723,1782390315000,2212.89,0.00030981,30]
[426438724,1782390351000,1283.68,0.00029931,30]
[426438725,1782390352000,1283.68,0.00030456,30]
[426438726,1782390367000,240.9,0.00029997,30]
[426438727,1782390368000,1170.69,0.00029931,30]
[426438728,1782390368000,240.9,0.00030096,30]
[426438730,1782390370000,240.9,0.00030196,30]
[426438729,1782390370000,1170.69,0.00030456,30]
[426438731,1782390371000,240.9,0.00030296,30]
[426438732,1782390372000,240.9,0.00030395,30]
[426438733,1782390373000,240.9,0.00030495,30]
[426438734,1782390374000,361.36,0.00025378,30]
[426438735,1782390388000,985.82,0.00029931,30]
[426438736,1782390388000,985.82,0.00030456,30]
[426438737,1782390411000,150.0,0.000315,30]
[426438738,1782390423000,579.98,0.00029931,30]
[426438739,1782390423000,579.98,0.00030456,30]
[426438740,1782390439000,621.03,0.00029931,30]
[426438742,1782390440000,1001.0,0.00030493,120]
[426438741,1782390440000,621.03,0.00030456,30]
[426438743,1782390447000,341.83,0.00029997,30]
[426438744,1782390448000,341.83,0.00030096,30]
[426438745,1782390449000,341.83,0.00030196,30]
[426438746,1782390450000,341.83,0.00030296,30]
[426438747,1782390451000,341.83,0.00030395,30]
[426438748,1782390453000,341.83,0.00030495,30]
[426438749,1782390454000,512.75,0.00025378,30]
[426438751,1782390458000,164.53,0.00030137,120]
[426438750,1782390458000,716.27,0.00029931,30]
[426438752,1782390459000,716.27,0.00030456,30]
[426438754,1782390492000,1466.59,0.00030456,30]
[426438753,1782390492000,1466.59,0.00029931,30]
[426438755,1782390493000,270.0,0.0002865,30]
[426438756,1782390495000,270.0,0.0002965,30]
[426438757,1782390496000,270.0,0.0003065,30]
[426438758,1782390499000,1291.06,0.00029931,30]
[426438759,1782390501000,1291.06,0.00030456,30]
[426438760,1782390503000,265.77,0.00029997,30]
[426438761,1782390504000,265.77,0.00030096,30]
[426438762,1782390505000,265.77,0.00030196,30]
[426438764,1782390506000,265.77,0.00030296,30]
[426438763,1782390506000,255.74656403,0.0002,120]
[426438765,1782390507000,265.77,0.00030395,30]
[426438766,1782390508000,265.77,0.00030495,30]
[426438767,1782390509000,398.66,0.00025378,30]
[426438768,1782390524000,984.7,0.00029931,30]
[426438769,1782390524000,984.7,0.00030456,30]
[426438770,1782390527000,1171.66,0.00029931,30]
[426438771,1782390528000,1171.66,0.00030456,30]
[426438772,1782390541000,564.0,0.0002865,30]
[426438773,1782390542000,564.0,0.0002965,30]
[426438774,1782390543000,564.0,0.0003065,30]
[426438775,1782390552000,350.0,0.00031191,30]
[426438776,1782390564000,1100.11,0.00029931,30]
[426438777,1782390565000,1100.11,0.00030456,30]
[426438778,1782390574000,158.0,0.0002865,30]
[426438779,1782390575000,158.0,0.0002965,30]
[426438780,1782390576000,158.0,0.0003065,30]
[426438781,1782390585000,218.06,0.00029997,30]
[426438782,1782390586000,218.06,0.00030096,30]
[426438783,1782390587000,218.06,0.00030196,30]
[426438784,1782390588000,218.06,0.00030296,30]
[426438785,1782390589000,218.06,0.00030395,30]
[426438786,1782390590000,218.06,0.00030495,30]
[426438787,1782390591000,327.09,0.00025378,30]
[426438788,1782390594000,862.99,0.00029931,30]
[426438789,1782390594000,862.99,0.00030456,30]
[426438790,1782390598000,642.29,0.00029931,30]
[426438792,1782390599000,642.29,0.00030456,30]
[426438791,1782390599000,150.0,0.000315,30]
[426438794,1782390612000,631.71,0.00029931,30]
[426438793,1782390612000,917.0,0.00028667,30]
[426438796,1782390613000,917.0,0.00029667,30]
[426438795,1782390613000,631.71,0.00030456,30]
[426438797,1782390614000,917.0,0.00030667,30]
[426438848,1782390631000,-787.61482426,0.00013769,2]
[426438821,1782390631000,-500.0,0.00013769,2]
[426438813,1782390631000,-207.31227617,0.00013769,2]
[426438825,1782390631000,-500.0,0.00013769,2]
[426438816,1782390631000,-419.51808473,0.00013769,2]
[426438817,1782390631000,-500.0,0.00013769,2]
[426438824,1782390631000,-512.3511834,0.00013769,2]
[426438819,1782390631000,-787.61482426,0.00013769,2]
[426438810,1782390631000,-150.0,0.00013768,2]
[426438809,1782390631000,-698.81128568,0.00013419,2]
[426438811,1782390631000,-500.0,0.00013769,2]
[426438812,1782390631000,-500.0,0.00013769,2]
[426438808,1782390631000,-278.52586619,0.00013419,2]
[426438802,1782390631000,-171.81,0.00012198,2]
[426438807,1782390631000,-443.00350549,0.00013419,2]
[426438806,1782390631000,-5724.44159198,0.00013419,2]
[426438805,1782390631000,-244.3971161,0.00013419,2]
[426438803,1782390631000,-436.0,0.000134,2]
[426438849,1782390631000,-787.61482426,0.00013769,2]
[426438801,1782390631000,226.8983606,0.00031506,30]
[426438823,1782390631000,-787.61482426,0.00013769,2]
[426438818,1782390631000,-500.0,0.00013769,2]
[426438804,1782390631000,-209.37325392,0.00013419,2]
[426438814,1782390631000,-315.73542611,0.00013769,2]
[426438820,1782390631000,-500.43474577,0.00013769,2]
[426438844,1782390631000,-787.61482426,0.00013769,2]
[426438843,1782390631000,-787.61482426,0.00013769,2]
[426438842,1782390631000,-787.61482426,0.00013769,2]
[426438841,1782390631000,-787.61482426,0.00013769,2]
[426438839,1782390631000,-787.61482426,0.00013769,2]
[426438838,1782390631000,-787.61482426,0.00013769,2]
[426438831,1782390631000,-787.61482426,0.00013769,2]
[426438835,1782390631000,-787.61482426,0.00013769,2]
[426438846,1782390631000,-787.61482426,0.00013769,2]
[426438832,1782390631000,-787.61482426,0.00013769,2]
[426438834,1782390631000,-787.61482426,0.00013769,2]
[426438828,1782390631000,-289.27600779,0.00013769,2]
[426438833,1782390631000,-787.61482426,0.00013769,2]
[426438829,1782390631000,-787.61482426,0.00013769,2]
[426438826,1782390631000,-787.61482426,0.00013769,2]
[426438827,1782390631000,-787.61482426,0.00013769,2]
[426438822,1782390631000,-178.52070833,0.00013769,2]
[426438815,1782390631000,-500.0,0.00013769,2]
[426438830,1782390631000,-787.61482426,0.00013769,2]
[426438857,1782390632000,-787.61482426,0.00013769,2]
[426438859,1782390632000,-787.61482426,0.00013769,2]
[426438865,1782390632000,-787.61482426,0.00013769,2]
[426438860,1782390632000,-787.61482426,0.00013769,2]
[426438864,1782390632000,-787.61482426,0.00013769,2]
[426438858,1782390632000,-787.61482426,0.00013769,2]
[426438856,1782390632000,-787.61482426,0.00013769,2]
[426438855,1782390632000,-787.61482426,0.00013769,2]
[426438862,1782390632000,-787.61482426,0.00013769,2]
[426438861,1782390632000,-787.61482426,0.00013769,2]
[426438854,1782390632000,-787.61482426,0.00013769,2]
[426438852,1782390632000,-787.61482426,0.00013769,2]
[426438850,1782390632000,-787.61482426,0.00013769,2]
[426438851,1782390632000,-787.61482426,0.00013769,2]
[426438853,1782390632000,-787.61482426,0.00013769,2]
[426438866,1782390632000,-787.61482426,0.00013769,2]
[426438863,1782390632000,-787.61482426,0.00013769,2]
[426438867,1782390632000,-787.61482426,0.00013769,2]
[426438876,1782390632000,-787.61482426,0.00013769,2]
[426438872,1782390632000,-787.61482426,0.00013769,2]
[426438887,1782390632000,-540.15736935,0.00013769,2]
[426438883,1782390632000,-1833.01902139,0.00013769,2]
[426438885,1782390632000,-142.77977236,0.00013769,2]
[426438886,1782390632000,-1075.43,0.00013769,2]
[426438884,1782390632000,-356.47912627,0.00013769,2]
[426438882,1782390632000,-41.84535649,0.00013769,2]
[426438881,1782390632000,-425.45149614,0.00013769,2]
[426438868,1782390632000,-787.61482426,0.00013769,2]
[426438880,1782390632000,-1805.89200801,0.00013769,2]
[426438878,1782390632000,-787.61482426,0.00013769,2]
[426438877,1782390632000,-787.61482426,0.00013769,2]
[426438875,1782390632000,-787.61482426,0.00013769,2]
[426438874,1782390632000,-787.61482426,0.00013769,2]
[426438873,1782390632000,-787.61482426,0.00013769,2]
[426438869,1782390632000,-787.61482426,0.00013769,2]
[426438870,1782390632000,-787.61482426,0.00013769,2]
[426438871,1782390632000,-787.61482426,0.00013769,2]
[426438879,1782390632000,-787.61482426,0.00013769,2]
[426438913,1782390641000,-3504.8731183,0.00013419,2]
[426438916,1782390641000,-472.97636244,0.00013769,2]
[426438918,1782390641000,-2231.34350415,0.00013769,2]
[426438915,1782390641000,-781.360721,0.000137,2]
[426438917,1782390641000,-2231.34350415,0.00013769,2]
[426438912,1782390641000,-690.92725002,0.00013419,2]
[426438914,1782390641000,-2424.54674712,0.00013419,2]
[426438938,1782390642000,-2231.34350415,0.00013769,2]
[426438944,1782390642000,-2231.34350415,0.00013769,2]
[426438942,1782390642000,-2231.34350415,0.00013769,2]
[426438937,1782390642000,-2231.34350415,0.00013769,2]
[426438939,1782390642000,-2231.34350415,0.00013769,2]
[426438940,1782390642000,-2231.34350415,0.00013769,2]
[426438928,1782390642000,-2231.34350415,0.00013769,2]
[426438930,1782390642000,-2231.34350415,0.00013769,2]
[426438926,1782390642000,-2231.34350415,0.00013769,2]
[426438927,1782390642000,-2231.34350415,0.00013769,2]
[426438924,1782390642000,-2231.34350415,0.00013769,2]
[426438943,1782390642000,-2231.34350415,0.00013769,2]
[426438922,1782390642000,-2231.34350415,0.00013769,2]
[426438934,1782390642000,-2231.34350415,0.00013769,2]
[426438936,1782390642000,-2231.34350415,0.00013769,2]
[426438932,1782390642000,-2231.34350415,0.00013769,2]
[426438923,1782390642000,-2231.34350415,0.00013769,2]
[426438921,1782390642000,-2231.34350415,0.00013769,2]
[426438920,1782390642000,-2231.34350415,0.00013769,2]
[426438919,1782390642000,-2231.34350415,0.00013769,2]
[426438925,1782390642000,-2231.34350415,0.00013769,2]
[426438941,1782390642000,-2231.34350415,0.00013769,2]
[426438929,1782390642000,-2231.34350415,0.00013769,2]
[426438945,1782390642000,-2231.34350415,0.00013769,2]
[426438947,1782390642000,-2239.09122466,0.00013769,2]
[426438966,1782390642000,-1353.49513503,0.000148,2]
[426438968,1782390642000,-8947.59464688,0.000148,2]
[426438967,1782390642000,-299.99,0.000148,2]
[426438963,1782390642000,-193.07969935,0.000148,2]
[426438962,1782390642000,-1420.40686814,0.000148,2]
[426438964,1782390642000,-2500.0,0.000148,2]
[426438965,1782390642000,-47670.82302417,0.000148,2]
[426438954,1782390642000,-2239.09122466,0.00013769,2]
[426438955,1782390642000,-1024.69,0.00014115,2]
[426438952,1782390642000,-2239.09122466,0.00013769,2]
[426438961,1782390642000,-657068.7659,0.00014799,2]
[426438960,1782390642000,-403.00456127,0.00014794,2]
[426438951,1782390642000,-2239.09122466,0.00013769,2]
[426438958,1782390642000,-374.34521371,0.00014707,2]
[426438950,1782390642000,-2239.09122466,0.00013769,2]
[426438957,1782390642000,-166.66,0.00014575,2]
[426438959,1782390642000,-403.00456135,0.00014781,2]
[426438949,1782390642000,-2239.09122466,0.00013769,2]
[426438956,1782390642000,-272.74,0.00014571,2]
[426438948,1782390642000,-2239.09122466,0.00013769,2]
[426438953,1782390642000,-2239.09122466,0.00013769,2]
[426438946,1782390642000,-2231.34350415,0.00013769,2]
[426439007,1782390643000,-500.0,0.00014899,2]
[426439010,1782390643000,-500.0,0.00014899,2]
[426439016,1782390643000,-500.0,0.00014899,2]
[426439019,1782390643000,-500.0,0.00014899,2]
[426439012,1782390643000,-500.0,0.00014899,2]
[426439008,1782390643000,-506.0376133,0.00014899,2]
[426439013,1782390643000,-500.0,0.00014899,2]
[426439011,1782390643000,-500.0,0.00014899,2]
[426439009,1782390643000,-207.73404402,0.00014899,2]
[426439018,1782390643000,-500.0,0.00014899,2]
[426439014,1782390643000,-500.0,0.00014899,2]
[426439015,1782390643000,-500.0,0.00014899,2]
[426439032,1782390643000,-641.29391302,0.00014899,2]
[426439022,1782390643000,-500.0,0.00014899,2]
[426439021,1782390643000,-500.0,0.00014899,2]
[426439020,1782390643000,-500.0,0.00014899,2]
[426439024,1782390643000,-500.0,0.00014899,2]
[426439025,1782390643000,-500.0,0.00014899,2]
[426439034,1782390643000,-500.0,0.00014899,2]
[426439023,1782390643000,-500.0,0.00014899,2]
[426439033,1782390643000,-500.0,0.00014899,2]
[426439031,1782390643000,-500.0,0.00014899,2]
[426439026,1782390643000,-500.0,0.00014899,2]
[426439027,1782390643000,-500.0,0.00014899,2]
[426439004,1782390643000,-500.0,0.00014899,2]
[426439017,1782390643000,-500.0,0.00014899,2]
[426439006,1782390643000,-500.0,0.00014899,2]
[426438980,1782390643000,-403.00456127,0.00014807,2]
[426439005,1782390643000,-500.0,0.00014899,2]
[426438977,1782390643000,-649268.23367187,0.000148,2]
[426438984,1782390643000,-403.00456127,0.0001486,2]
[426439029,1782390643000,-500.0,0.00014899,2]
[426438978,1782390643000,-528160.76518871,0.000148,2]
[426438981,1782390643000,-403.00456127,0.00014821,2]
[426438982,1782390643000,-403.00456127,0.00014834,2]
[426438979,1782390643000,-264299.09833334,0.000148,2]
[426438983,1782390643000,-403.00456127,0.00014847,2]
[426438996,1782390643000,-500.0,0.00014899,2]
[426438986,1782390643000,-166.66,0.00014881,2]
[426438985,1782390643000,-403.00456127,0.00014874,2]
[426438987,1782390643000,-255.0,0.00014883,2]
[426439003,1782390643000,-500.0,0.00014899,2]
[426438989,1782390643000,-500.8996607,0.00014899,2]
[426438990,1782390643000,-1242.187,0.00014899,2]
[426438991,1782390643000,-180.617,0.00014899,2]
[426438992,1782390643000,-500.0,0.00014899,2]
[426438994,1782390643000,-500.0,0.00014899,2]
[426438993,1782390643000,-500.0,0.00014899,2]
[426438995,1782390643000,-500.0,0.00014899,2]
[426438997,1782390643000,-500.0,0.00014899,2]
[426439001,1782390643000,-500.0,0.00014899,2]
[426439000,1782390643000,-500.0,0.00014899,2]
[426438998,1782390643000,-500.0,0.00014899,2]
[426438999,1782390643000,-500.0,0.00014899,2]
[426439002,1782390643000,-500.0,0.00014899,2]
[426438988,1782390643000,-403.00456127,0.00014887,2]
[426439028,1782390643000,-500.0,0.00014899,2]
[426439074,1782390643000,-1000.0,0.000149,2]
[426439035,1782390643000,-500.0,0.00014899,2]
[426439030,1782390643000,-500.0,0.00014899,2]
[426439090,1782390643000,-1000.0,0.000149,2]
[426439092,1782390643000,-1000.0,0.000149,2]
[426439098,1782390643000,-1000.0,0.000149,2]
[426439094,1782390643000,-1000.0,0.000149,2]
[426439101,1782390643000,-1000.0,0.000149,2]
[426439103,1782390643000,-1000.0,0.000149,2]
[426439105,1782390643000,-1000.0,0.000149,2]
[426439107,1782390643000,-1000.0,0.000149,2]
[426439110,1782390643000,-1000.0,0.000149,2]
[426439109,1782390643000,-1000.0,0.000149,2]
[426439111,1782390643000,-403.00456127,0.000149,2]
[426439084,1782390643000,-1000.0,0.000149,2]
[426439113,1782390643000,-216.45114417,0.00014914,2]
[426439121,1782390643000,-500.0,0.00014999,2]
[426439123,1782390643000,-500.0,0.00014999,2]
[426439115,1782390643000,-160.0,0.00014915,2]
[426439119,1782390643000,-1787.92207337,0.00014999,5]
[426439125,1782390643000,-500.0,0.00014999,2]
[426439127,1782390643000,-500.0,0.00014999,2]
[426439131,1782390643000,-500.0,0.00014999,2]
[426439129,1782390643000,-500.0,0.00014999,2]
[426439135,1782390643000,-500.0,0.00014999,2]
[426439137,1782390643000,-285.64,0.00014999,2]
[426439133,1782390643000,-500.0,0.00014999,2]
[426439138,1782390643000,-500.0,0.00014999,2]
[426439117,1782390643000,-500.0,0.00014985,2]
[426439080,1782390643000,-1000.0,0.000149,2]
[426439096,1782390643000,-1000.0,0.000149,2]
[426439088,1782390643000,-1000.0,0.000149,2]
[426439039,1782390643000,-500.0,0.00014899,2]
[426439036,1782390643000,-500.0,0.00014899,2]
[426439037,1782390643000,-500.0,0.00014899,2]
[426439053,1782390643000,-1000.0,0.000149,2]
[426439047,1782390643000,-2000.0,0.000149,2]
[426439043,1782390643000,-500.0,0.00014899,2]
[426439041,1782390643000,-500.0,0.00014899,2]
[426439051,1782390643000,-1000.0,0.000149,2]
[426439055,1782390643000,-1000.0,0.000149,2]
[426439045,1782390643000,-707.6891,0.000149,2]
[426439086,1782390643000,-1000.0,0.000149,2]
[426439057,1782390643000,-1000.0,0.000149,2]
[426439065,1782390643000,-1000.0,0.000149,2]
[426439049,1782390643000,-1092.7684,0.000149,2]
[426439067,1782390643000,-1000.0,0.000149,2]
[426439082,1782390643000,-1000.0,0.000149,2]
[426439078,1782390643000,-1000.0,0.000149,2]
[426439059,1782390643000,-1000.0,0.000149,2]
[426439076,1782390643000,-1000.0,0.000149,2]
[426439069,1782390643000,-1000.0,0.000149,2]
[426439072,1782390643000,-1000.0,0.000149,2]
[426439075,1782390643000,-1000.0,0.000149,2]
[426439073,1782390643000,-1000.0,0.000149,2]
[426439071,1782390643000,-1000.0,0.000149,2]
[426439063,1782390643000,-1000.0,0.000149,2]
[426439060,1782390643000,-1000.0,0.000149,2]
[426439070,1782390643000,-1000.0,0.000149,2]
[426439152,1782390644000,-500.0,0.00014999,2]
[426439144,1782390644000,-500.0,0.00014999,2]
[426439142,1782390644000,-500.0,0.00014999,2]
[426439146,1782390644000,-500.0,0.00014999,2]
[426439141,1782390644000,-500.0,0.00014999,2]
[426439148,1782390644000,-500.0,0.00014999,2]
[426439150,1782390644000,-500.0,0.00014999,2]
[426439156,1782390644000,-500.0,0.00014999,2]
[426439154,1782390644000,-500.0,0.00014999,2]
[426439163,1782390644000,-516.46,0.00014999,2]
[426439168,1782390644000,672.03,0.00029931,30]
[426439167,1782390644000,-389.89188034,0.00015,2]
[426439162,1782390644000,-500.0,0.00014999,2]
[426439160,1782390644000,-500.0,0.00014999,2]
[426439164,1782390644000,-548.14941671,0.00014999,2]
[426439165,1782390644000,-864696.35578721,0.00015,2]
[426439169,1782390644000,672.03,0.00030456,30]
[426439166,1782390644000,-260604.23483529,0.00015,2]
[426439158,1782390644000,-500.0,0.00014999,2]
[426439170,1782390645000,1241.0,0.00028667,30]
[426439172,1782390645000,-427683.2417606,0.00015,2]
[426439171,1782390645000,-2143.99644764,0.00015,2]
[426439176,1782390646000,-28675.65027305,0.00015,2]
[426439175,1782390646000,-2145.71813325,0.00015,2]
[426439173,1782390646000,-22922.46399627,0.00015,2]
[426439174,1782390646000,-4260.7348443,0.00015,2]
[426439194,1782390647000,1241.0,0.00029667,30]
[426439216,1782390648000,1241.0,0.00030667,30]
[426439218,1782390665000,721.35,0.00029931,30]
[426439221,1782390666000,855.45,0.00030456,30]
[426439220,1782390666000,721.35,0.00030456,30]
[426439219,1782390666000,855.45,0.00029931,30]
[426439222,1782390668000,224.41,0.00029997,30]
[426439223,1782390669000,224.41,0.00030096,30]
[426439224,1782390670000,224.41,0.00030196,30]
[426439225,1782390671000,224.41,0.00030296,30]
[426439226,1782390672000,224.41,0.00030395,30]
[426439227,1782390673000,224.41,0.00030495,30]
[426439228,1782390675000,336.61,0.00025378,30]
[426439229,1782390678000,773.34,0.00029931,30]
[426439230,1782390680000,773.34,0.00030456,30]
[426439231,1782390682000,162.92721718,0.00030137,30]
[426439233,1782390685000,500.0,0.00030136,120]
[426439232,1782390685000,150.0,0.00027397,30]
[426439236,1782390686000,500.0,0.00030136,120]
[426439234,1782390686000,500.0,0.00030136,120]
[426439235,1782390686000,500.0,0.00030136,120]
[426439238,1782390687000,500.0,0.00030136,120]
[426439237,1782390687000,500.0,0.00030136,120]
[426439241,1782390688000,314.72387775,0.00030136,120]
[426439240,1782390688000,500.0,0.00030136,120]
[426439239,1782390688000,500.0,0.00030136,120]
[426439242,1782390692000,179.0,0.00028667,30]
[426439243,1782390693000,179.0,0.00029667,30]
[426439244,1782390695000,179.0,0.00030667,30]
[426439251,1782390735000,802.02,0.00029931,30]
[426439252,1782390736000,802.02,0.00030456,30]
[426439253,1782390739000,157.0,0.00028667,30]
[426439254,1782390740000,157.0,0.00029667,30]
[426439256,1782390742000,157.0,0.00030667,30]
[426439255,1782390742000,654.95,0.00029931,30]
[426439257,1782390743000,654.95,0.00030456,30]
[426439258,1782390747000,797.91,0.00029931,30]
[426439259,1782390748000,797.91,0.00030456,30]
[426439260,1782390755000,213.71,0.00029997,30]
[426439261,1782390756000,213.71,0.00030096,30]
[426439262,1782390757000,213.71,0.00030196,30]
[426439263,1782390758000,213.71,0.00030296,30]
[426439264,1782390759000,213.71,0.00030395,30]
[426439265,1782390760000,213.71,0.00030495,30]
[426439269,1782390762000,500.0,0.00030136,120]
[426439268,1782390762000,500.0,0.00030136,120]
[426439267,1782390762000,500.0,0.00030136,120]
[426439266,1782390762000,320.57,0.00025378,30]
[426439272,1782390763000,500.0,0.00030136,120]
[426439271,1782390763000,500.0,0.00030136,120]
[426439270,1782390763000,500.0,0.00030136,120]
[426439274,1782390764000,501.5896809,0.00030136,120]
[426439273,1782390764000,500.0,0.00030136,120]
[426439278,1782390849000,232.0,0.0003135,120]
[426439279,1782390859000,501.52375027,0.00030136,120]
[426439283,1782390874000,498.0,0.00030136,120]
[426439292,1782390968000,500.0,0.00030136,120]
[426439295,1782390969000,500.0,0.00030136,120]
[426439294,1782390969000,500.0,0.00030136,120]
[426439293,1782390969000,500.0,0.00030136,120]
[426439298,1782390970000,500.0,0.00030136,120]
[426439297,1782390970000,500.0,0.00030136,120]
[426439296,1782390970000,500.0,0.00030136,120]
[426439299,1782390971000,500.0,0.00030136,120]
[426439301,1782390971000,500.0,0.00030136,120]
[426439300,1782390971000,500.0,0.00030136,120]
[426439302,1782390972000,635.16753901,0.00030136,120]
[426439303,1782391017000,186.91,0.00030411,120]
[426439305,1782391094000,565.90063452,0.00030136,120]
[426439304,1782391094000,500.0,0.00030136,120]
[426439307,1782391164000,209.93404598,0.00030136,120]
[426439308,1782391220000,1001.0,0.00030493,120]
[426439318,1782391681000,1008.271952,0.00031507,120]
[426439320,1782391752000,-150.0,0.00012524,2]
[426439340,1782391831000,-500.0,0.00012524,2]
[426439345,1782391831000,-500.0,0.00012524,2]
[426439329,1782391831000,-500.0,0.00012524,2]
[426439330,1782391831000,-91.69857547,0.00012524,2]
[426439328,1782391831000,-500.0,0.00012524,2]
[426439331,1782391831000,-353.8945,0.00012524,2]
[426439333,1782391831000,-232.57307547,0.00012524,2]
[426439332,1782391831000,-54.40692453,0.00012524,2]
[426439334,1782391831000,-267.42692453,0.00012524,2]
[426439327,1782391831000,-500.0,0.00012524,2]
[426439337,1782391831000,-500.0,0.00012524,2]
[426439336,1782391831000,-460.33824459,0.00012524,2]
[426439339,1782391831000,-500.0,0.00012524,2]
[426439338,1782391831000,-500.0,0.00012524,2]
[426439341,1782391831000,-500.0,0.00012524,2]
[426439343,1782391831000,-460.45363367,0.00012524,2]